[Event "*** Qualifier 1: Titled Tuesday 3|2 Blitz"]
[Site "Chess.com"]
[Date "2017.04.04"]
[Round "8"]
[White "SergeiAza"]
[Black "Maung-Mg-KZH"]
[Result "0-1"]
[WhiteElo "2640"]
[BlackElo "2354"]
[TimeControl "180+2"]
[EndTime "14:50:31 PDT"]
[Termination "Maung-Mg-KZH won on time"]

1. e4 {[%clk 0:03:02]} 1... c6 {[%clk 0:02:58]} 2. d4 {[%clk 0:03:00.8]} 2... d5
{[%clk 0:02:59.1]} 3. Nc3 {[%clk 0:02:59.9]} 3... dxe4 {[%clk 0:02:59.9]} 4.
Nxe4 {[%clk 0:03:01.5]} 4... Bf5 {[%clk 0:03:01.5]} 5. Ng3 {[%clk 0:03:03]} 5...
Bg6 {[%clk 0:02:59.1]} 6. Nh3 {[%clk 0:03:04.4]} 6... Nf6 {[%clk 0:02:56]} 7.
Nf4 {[%clk 0:03:02.7]} 7... e6 {[%clk 0:02:54.5]} 8. h4 {[%clk 0:02:56]} 8...
Bd6 {[%clk 0:02:47]} 9. h5 {[%clk 0:02:53.1]} 9... Be4 {[%clk 0:02:44.7]} 10. f3
{[%clk 0:02:40.2]} 10... Qc7 {[%clk 0:02:37.4]} 11. Rh4 {[%clk 0:02:31.5]} 11...
g5 {[%clk 0:02:26.6]} 12. hxg6 {[%clk 0:02:21.1]} 12... Bxg6 {[%clk 0:02:26.7]}
13. Bc4 {[%clk 0:02:15.2]} 13... Nbd7 {[%clk 0:02:25.1]} 14. Nge2 {[%clk
0:02:12.1]} 14... O-O-O {[%clk 0:02:23.9]} 15. Be3 {[%clk 0:02:06]} 15... Nb6
{[%clk 0:02:22.3]} 16. Bb3 {[%clk 0:02:02.6]} 16... e5 {[%clk 0:02:22.1]} 17.
Nxg6 {[%clk 0:01:52.7]} 17... hxg6 {[%clk 0:02:22.5]} 18. Rxh8 {[%clk
0:01:45.4]} 18... Rxh8 {[%clk 0:02:24.4]} 19. Kf2 {[%clk 0:01:45]} 19... Nbd5
{[%clk 0:02:21.1]} 20. Qd2 {[%clk 0:01:37.5]} 20... Nxe3 {[%clk 0:02:19.4]} 21.
Qxe3 {[%clk 0:01:37.8]} 21... exd4 {[%clk 0:02:19.9]} 22. Qxd4 {[%clk
0:01:37.4]} 22... Qe7 {[%clk 0:02:15.3]} 23. Qe3 {[%clk 0:01:13]} 23... Bc5
{[%clk 0:02:09.1]} 24. Nd4 {[%clk 0:01:12.5]} 24... Re8 {[%clk 0:01:44]} 25. Qd3
{[%clk 0:00:43.8]} 25... Ng4+ {[%clk 0:01:33.4]} 26. fxg4 {[%clk 0:00:41.8]}
26... Qf6+ {[%clk 0:01:32]} 27. Kg3 {[%clk 0:00:18.2]} 27... Bd6+ {[%clk
0:01:13.7]} 0-1

[Event "*** Qualifier 1: Titled Tuesday 3|2 Blitz"]
[Site "Chess.com"]
[Date "2017.04.04"]
[Round "8"]
[White "Outsmiter"]
[Black "Ilja_Semjonovs"]
[Result "1-0"]
[WhiteElo "2116"]
[BlackElo "2141"]
[TimeControl "180+2"]
[EndTime "14:50:41 PDT"]
[Termination "Outsmiter won by resignation"]

1. e4 {[%clk 0:03:01.6]} 1... e5 {[%clk 0:03:01.1]} 2. Nf3 {[%clk 0:03:01.3]}
2... Nc6 {[%clk 0:03:01.7]} 3. Bb5 {[%clk 0:03:02.6]} 3... a6 {[%clk 0:03:00.4]}
4. Ba4 {[%clk 0:03:03.5]} 4... Nf6 {[%clk 0:03:01.3]} 5. d4 {[%clk 0:03:04.7]}
5... exd4 {[%clk 0:02:59.7]} 6. e5 {[%clk 0:03:06.6]} 6... Ne4 {[%clk
0:02:57.3]} 7. O-O {[%clk 0:03:06.9]} 7... Be7 {[%clk 0:02:54.4]} 8. Re1 {[%clk
0:02:59]} 8... Nc5 {[%clk 0:02:52.7]} 9. Bxc6 {[%clk 0:02:59.1]} 9... dxc6
{[%clk 0:02:54.6]} 10. Qxd4 {[%clk 0:02:53.4]} 10... O-O {[%clk 0:02:50.4]} 11.
Nc3 {[%clk 0:02:45.8]} 11... Bf5 {[%clk 0:02:45.6]} 12. Re2 {[%clk 0:02:20.1]}
12... Bg6 {[%clk 0:02:38.5]} 13. Be3 {[%clk 0:02:15.1]} 13... Ne6 {[%clk
0:02:38.1]} 14. Qa4 {[%clk 0:02:03]} 14... Bc5 {[%clk 0:02:29.3]} 15. Rd1 {[%clk
0:02:00.7]} 15... Qe7 {[%clk 0:02:24.5]} 16. Ne4 {[%clk 0:01:57.7]} 16... Bxe3
{[%clk 0:02:10.3]} 17. Rxe3 {[%clk 0:01:54.5]} 17... Bxe4 {[%clk 0:02:08.9]} 18.
Qxe4 {[%clk 0:01:54.3]} 18... Rad8 {[%clk 0:02:03.2]} 19. Ree1 {[%clk 0:01:49]}
19... Rxd1 {[%clk 0:02:02.4]} 20. Rxd1 {[%clk 0:01:50.9]} 20... Rd8 {[%clk
0:02:03.9]} 21. Qe1 {[%clk 0:01:45.4]} 21... Rxd1 {[%clk 0:02:02.2]} 22. Qxd1
{[%clk 0:01:47.3]} 22... h6 {[%clk 0:02:01.8]} 23. Qd3 {[%clk 0:01:43.9]} 23...
Ng5 {[%clk 0:01:56.4]} 24. Nxg5 {[%clk 0:00:57.9]} 24... Qxg5 {[%clk 0:01:58.3]}
25. Qe3 {[%clk 0:00:56.3]} 25... Qxe3 {[%clk 0:01:56]} 26. fxe3 {[%clk
0:00:58.2]} 26... Kf8 {[%clk 0:01:57.9]} 27. Kf2 {[%clk 0:00:59.3]} 27... Ke7
{[%clk 0:01:59.4]} 28. Kf3 {[%clk 0:01:00.5]} 28... Ke6 {[%clk 0:02:01.3]} 29.
Ke4 {[%clk 0:01:01.5]} 29... f6 {[%clk 0:01:55.2]} 30. exf6 {[%clk 0:01:01.4]}
30... Kxf6 {[%clk 0:01:57.1]} 31. h4 {[%clk 0:01:01.2]} 31... Ke6 {[%clk
0:01:57.4]} 32. h5 {[%clk 0:01:01.2]} 32... Kf6 {[%clk 0:01:58]} 33. Kf4 {[%clk
0:01:01.9]} 33... b6 {[%clk 0:01:54.2]} 34. c4 {[%clk 0:01:01.5]} 34... b5
{[%clk 0:01:51.8]} 35. c5 {[%clk 0:01:00.8]} 35... Ke6 {[%clk 0:01:52]} 36. e4
{[%clk 0:01:00.9]} 36... Kf6 {[%clk 0:01:53]} 37. b4 {[%clk 0:01:00.2]} 37... g6
{[%clk 0:01:52]} 38. hxg6 {[%clk 0:00:59.4]} 38... Kxg6 {[%clk 0:01:53.9]} 39.
Ke5 {[%clk 0:00:59.4]} 39... Kf7 {[%clk 0:01:52.3]} 40. Kf5 {[%clk 0:00:59.9]}
40... h5 {[%clk 0:01:48.5]} 41. e5 {[%clk 0:00:58.8]} 41... Ke7 {[%clk 0:01:49]}
42. e6 {[%clk 0:00:58.7]} 42... h4 {[%clk 0:01:49.8]} 43. Ke5 {[%clk 0:00:59.2]}
43... Ke8 {[%clk 0:01:49.4]} 44. Kf6 {[%clk 0:01:00]} 44... Kf8 {[%clk
0:01:48.7]} 45. e7+ {[%clk 0:01:00.7]} 45... Ke8 {[%clk 0:01:50]} 46. Ke6 {[%clk
0:00:59.9]} 46... h3 {[%clk 0:01:46.5]} 47. gxh3 {[%clk 0:01:01]} 47... a5
{[%clk 0:01:48.4]} 48. bxa5 {[%clk 0:01:01.4]} 48... b4 {[%clk 0:01:49.6]} 49.
Kf6 {[%clk 0:01:02.1]} 49... b3 {[%clk 0:01:51.5]} 50. axb3 {[%clk 0:01:03.4]}
50... Kd7 {[%clk 0:01:51.7]} 1-0

[Event "*** Qualifier 1: Titled Tuesday 3|2 Blitz"]
[Site "Chess.com"]
[Date "2017.04.04"]
[Round "8"]
[White "kharov2001"]
[Black "Osensei"]
[Result "0-1"]
[WhiteElo "1824"]
[BlackElo "1742"]
[TimeControl "180+2"]
[EndTime "14:50:47 PDT"]
[Termination "Osensei won on time"]

1. e4 {[%clk 0:02:56.9]} 1... c5 {[%clk 0:03:00.3]} 2. Nf3 {[%clk 0:02:57]} 2...
d6 {[%clk 0:03:01.7]} 3. d4 {[%clk 0:02:58.1]} 3... cxd4 {[%clk 0:03:03.6]} 4.
Nxd4 {[%clk 0:02:58.1]} 4... Nf6 {[%clk 0:03:05]} 5. Nc3 {[%clk 0:02:58.5]} 5...
a6 {[%clk 0:03:06.3]} 6. Be3 {[%clk 0:02:57.7]} 6... e6 {[%clk 0:03:06.5]} 7.
Be2 {[%clk 0:02:56.2]} 7... Be7 {[%clk 0:03:05.9]} 8. O-O {[%clk 0:02:54.5]}
8... Qc7 {[%clk 0:03:07]} 9. a4 {[%clk 0:02:54.5]} 9... b6 {[%clk 0:03:07.1]}
10. f4 {[%clk 0:02:52.4]} 10... Bb7 {[%clk 0:03:08.1]} 11. Bf3 {[%clk
0:02:53.3]} 11... Nbd7 {[%clk 0:03:08.9]} 12. Kh1 {[%clk 0:02:39.7]} 12... Nc5
{[%clk 0:03:09.4]} 13. e5 {[%clk 0:02:28.9]} 13... dxe5 {[%clk 0:03:06.3]} 14.
fxe5 {[%clk 0:02:28.5]} 14... Qxe5 {[%clk 0:03:00.4]} 15. Bf4 {[%clk 0:02:26.4]}
15... Qxf4 {[%clk 0:02:34.7]} 16. Bc6+ {[%clk 0:02:03.1]} 16... Bxc6 {[%clk
0:02:33.1]} 17. Rxf4 {[%clk 0:01:43.9]} 17... Bd7 {[%clk 0:02:28]} 18. Qf3
{[%clk 0:00:08.6]} 18... O-O {[%clk 0:02:25.5]} 19. Qe3 {[%clk 0:00:06.6]} 19...
Bd6 {[%clk 0:02:21.1]} 20. Rff1 {[%clk 0:00:07.2]} 20... Ng4 {[%clk 0:02:15.2]}
21. Qg5 {[%clk 0:00:06.5]} 21... Nxh2 {[%clk 0:02:11.3]} 22. Rf2 {[%clk
0:00:06.3]} 22... h6 {[%clk 0:02:08.6]} 23. Qh4 {[%clk 0:00:06.8]} 23... Ng4
{[%clk 0:02:07.9]} 24. Rd2 {[%clk 0:00:06.4]} 24... Ne3 {[%clk 0:01:59.5]} 25.
Nf3 {[%clk 0:00:05.7]} 25... Bc7 {[%clk 0:01:46.9]} 26. b4 {[%clk 0:00:05.5]}
26... Bd8 {[%clk 0:01:44.5]} 27. Qf2 {[%clk 0:00:05.6]} 27... Bf6 {[%clk
0:01:41.7]} 28. bxc5 {[%clk 0:00:05.2]} 28... Ng4 {[%clk 0:01:34.8]} 0-1

[Event "*** Qualifier 1: Titled Tuesday 3|2 Blitz"]
[Site "Chess.com"]
[Date "2017.04.04"]
[Round "8"]
[White "severomorskij"]
[Black "plouarzel"]
[Result "0-1"]
[WhiteElo "2644"]
[BlackElo "2425"]
[TimeControl "180+2"]
[EndTime "14:51:44 PDT"]
[Termination "plouarzel won on time"]

1. d4 {[%clk 0:03:02]} 1... g6 {[%clk 0:02:57.4]} 2. e4 {[%clk 0:03:01.6]} 2...
Bg7 {[%clk 0:02:58.6]} 3. Nc3 {[%clk 0:03:02.6]} 3... e6 {[%clk 0:02:59.6]} 4.
Nf3 {[%clk 0:02:59.2]} 4... Ne7 {[%clk 0:03:01]} 5. h4 {[%clk 0:02:56.8]} 5...
h6 {[%clk 0:02:55.9]} 6. Bf4 {[%clk 0:02:37.9]} 6... d6 {[%clk 0:02:53.9]} 7.
Qd2 {[%clk 0:02:38.5]} 7... b6 {[%clk 0:02:52.3]} 8. O-O-O {[%clk 0:02:38.6]}
8... Bb7 {[%clk 0:02:53.8]} 9. d5 {[%clk 0:01:52.2]} 9... e5 {[%clk 0:02:53.5]}
10. Be3 {[%clk 0:01:52.6]} 10... Nd7 {[%clk 0:02:52.6]} 11. g4 {[%clk
0:01:45.9]} 11... Nf6 {[%clk 0:02:48]} 12. Bb5+ {[%clk 0:01:38.8]} 12... Kf8
{[%clk 0:02:48.3]} 13. Rdg1 {[%clk 0:01:20.6]} 13... a6 {[%clk 0:02:35.8]} 14.
Bd3 {[%clk 0:01:21.1]} 14... Qd7 {[%clk 0:02:26.2]} 15. g5 {[%clk 0:00:53.3]}
15... hxg5 {[%clk 0:02:28.1]} 16. Bxg5 {[%clk 0:00:48]} 16... b5 {[%clk
0:02:22.4]} 17. Kb1 {[%clk 0:00:40.3]} 17... b4 {[%clk 0:02:19.9]} 18. Ne2
{[%clk 0:00:41.2]} 18... a5 {[%clk 0:02:20]} 19. Ng3 {[%clk 0:00:40.8]} 19...
Nh5 {[%clk 0:02:07.6]} 20. Nxh5 {[%clk 0:00:41.3]} 20... Rxh5 {[%clk 0:02:09.5]}
21. Be2 {[%clk 0:00:41]} 21... c6 {[%clk 0:01:45.1]} 22. Nxe5 {[%clk 0:00:22.8]}
22... Bxe5 {[%clk 0:01:34.1]} 23. Bxh5 {[%clk 0:00:23]} 23... gxh5 {[%clk
0:01:31.8]} 24. Bh6+ {[%clk 0:00:21.5]} 24... Ke8 {[%clk 0:01:32.1]} 25. f4
{[%clk 0:00:16.6]} 25... Bh8 {[%clk 0:01:32.2]} 26. Bg7 {[%clk 0:00:10.7]} 26...
Bxg7 {[%clk 0:01:25.5]} 27. Rxg7 {[%clk 0:00:12.6]} 27... cxd5 {[%clk 0:01:27]}
28. f5 {[%clk 0:00:10]} 28... dxe4 {[%clk 0:00:50.1]} 29. f6 {[%clk 0:00:11.1]}
29... Qe6 {[%clk 0:00:51.5]} 30. Qg5 {[%clk 0:00:11.3]} 30... Nf5 {[%clk
0:00:43.6]} 31. Rf1 {[%clk 0:00:10.2]} 31... Nd4 {[%clk 0:00:39.1]} 32. Rd1
{[%clk 0:00:05.9]} 32... e3 {[%clk 0:00:32]} 33. Rxd4 {[%clk 0:00:05]} 33... e2
{[%clk 0:00:33.5]} 34. Qb5+ {[%clk 0:00:05.9]} 34... Kf8 {[%clk 0:00:28.6]} 0-1

[Event "*** Qualifier 1: Titled Tuesday 3|2 Blitz"]
[Site "Chess.com"]
[Date "2017.04.04"]
[Round "8"]
[White "Duhless"]
[Black "Dlugy"]
[Result "0-1"]
[WhiteElo "2729"]
[BlackElo "2680"]
[TimeControl "180+2"]
[EndTime "14:51:53 PDT"]
[Termination "Dlugy won on time"]

1. c4 {[%clk 0:03:02]} 1... c5 {[%clk 0:03:00.4]} 2. Nf3 {[%clk 0:03:02.6]} 2...
Nf6 {[%clk 0:03:00.7]} 3. d4 {[%clk 0:03:01.8]} 3... cxd4 {[%clk 0:02:59.5]} 4.
Nxd4 {[%clk 0:03:03]} 4... d5 {[%clk 0:02:59.1]} 5. cxd5 {[%clk 0:03:02.2]} 5...
Nxd5 {[%clk 0:03:00.1]} 6. e4 {[%clk 0:02:57.8]} 6... Nb4 {[%clk 0:03:01.1]} 7.
Bb5+ {[%clk 0:02:54.2]} 7... Bd7 {[%clk 0:03:01.5]} 8. O-O {[%clk 0:02:50.8]}
8... e5 {[%clk 0:02:59.3]} 9. a3 {[%clk 0:02:06.1]} 9... exd4 {[%clk 0:02:59.8]}
10. Bxd7+ {[%clk 0:02:06.9]} 10... Qxd7 {[%clk 0:02:59.9]} 11. axb4 {[%clk
0:02:07.6]} 11... Bxb4 {[%clk 0:03:01.8]} 12. Qd3 {[%clk 0:02:04]} 12... O-O
{[%clk 0:03:00.8]} 13. Bf4 {[%clk 0:02:05]} 13... Nc6 {[%clk 0:02:56.6]} 14. Na3
{[%clk 0:02:02.9]} 14... Rad8 {[%clk 0:02:44.8]} 15. Nc4 {[%clk 0:02:02.1]}
15... Rfe8 {[%clk 0:02:40.1]} 16. f3 {[%clk 0:01:39.5]} 16... Bc5 {[%clk
0:02:37.2]} 17. Kh1 {[%clk 0:01:37.6]} 17... b6 {[%clk 0:02:33.1]} 18. Bg5
{[%clk 0:01:36.7]} 18... Rc8 {[%clk 0:02:30.3]} 19. Rad1 {[%clk 0:01:33.4]}
19... Qe6 {[%clk 0:02:27.6]} 20. b3 {[%clk 0:01:24.4]} 20... b5 {[%clk
0:02:24.8]} 21. Nd2 {[%clk 0:01:23.5]} 21... a6 {[%clk 0:02:25.6]} 22. f4 {[%clk
0:01:24.3]} 22... Nb4 {[%clk 0:02:23.4]} 23. Qg3 {[%clk 0:01:24.8]} 23... f5
{[%clk 0:02:14.5]} 24. Qh3 {[%clk 0:01:15.4]} 24... fxe4 {[%clk 0:02:08.8]} 25.
f5 {[%clk 0:01:16.5]} 25... Qd5 {[%clk 0:02:01.3]} 26. f6 {[%clk 0:01:15.9]}
26... Rc7 {[%clk 0:01:59]} 27. Rf5 {[%clk 0:01:02.7]} 27... Re5 {[%clk
0:01:58.8]} 28. Rdf1 {[%clk 0:01:03.6]} 28... Rxf5 {[%clk 0:01:51.3]} 29. Rxf5
{[%clk 0:01:03.9]} 29... Bf8 {[%clk 0:01:52.9]} 30. Nc4 {[%clk 0:00:30.8]} 30...
Nd3 {[%clk 0:01:34.9]} 31. Kg1 {[%clk 0:00:23.3]} 31... Qc6 {[%clk 0:01:32.4]}
32. fxg7 {[%clk 0:00:05.3]} 32... Bxg7 {[%clk 0:01:31.1]} 33. Nd2 {[%clk
0:00:06.7]} 33... e3 {[%clk 0:01:26.5]} 34. Rf1 {[%clk 0:00:06]} 34... Qd5
{[%clk 0:01:21.5]} 35. Bh4 {[%clk 0:00:04.2]} 35... Nf4 {[%clk 0:00:58.5]} 36.
Rxf4 {[%clk 0:00:04.5]} 36... exd2 {[%clk 0:00:57]} 37. Rf1 {[%clk 0:00:04.5]}
37... Rc1 {[%clk 0:00:55]} 38. Qd3 {[%clk 0:00:04.9]} 38... Rxf1+ {[%clk
0:00:47.3]} 39. Kxf1 {[%clk 0:00:05.7]} 39... Qh5 {[%clk 0:00:48.7]} 40. Qxd2
{[%clk 0:00:03.2]} 40... Qxh4 {[%clk 0:00:50]} 41. Qe2 {[%clk 0:00:04.3]} 41...
Qf4+ {[%clk 0:00:50.3]} 0-1

[Event "*** Qualifier 1: Titled Tuesday 3|2 Blitz"]
[Site "Chess.com"]
[Date "2017.04.04"]
[Round "8"]
[White "HansCoolNiemann"]
[Black "yian123"]
[Result "1-0"]
[WhiteElo "2360"]
[BlackElo "2396"]
[TimeControl "180+2"]
[EndTime "14:51:54 PDT"]
[Termination "HansCoolNiemann won by resignation"]

1. d4 {[%clk 0:03:02]} 1... d5 {[%clk 0:03:00.7]} 2. c4 {[%clk 0:02:58]} 2... c6
{[%clk 0:03:01.7]} 3. cxd5 {[%clk 0:02:54.7]} 3... cxd5 {[%clk 0:03:00.9]} 4.
Nc3 {[%clk 0:02:54.8]} 4... Nf6 {[%clk 0:03:00.3]} 5. Bf4 {[%clk 0:02:53]} 5...
a6 {[%clk 0:03:01.2]} 6. e3 {[%clk 0:02:48.8]} 6... Nc6 {[%clk 0:03:02.3]} 7.
Nf3 {[%clk 0:02:46.2]} 7... Bg4 {[%clk 0:03:02.5]} 8. Bd3 {[%clk 0:02:41.2]}
8... Rc8 {[%clk 0:03:01.5]} 9. O-O {[%clk 0:02:35.8]} 9... e6 {[%clk 0:03:02.4]}
10. h3 {[%clk 0:02:33.2]} 10... Bxf3 {[%clk 0:03:01.1]} 11. Qxf3 {[%clk
0:02:32.1]} 11... Bd6 {[%clk 0:03:02.6]} 12. Rac1 {[%clk 0:02:28.2]} 12... Bxf4
{[%clk 0:03:00.3]} 13. Qxf4 {[%clk 0:02:28.9]} 13... O-O {[%clk 0:03:01]} 14. a3
{[%clk 0:02:24.8]} 14... b5 {[%clk 0:02:56]} 15. a4 {[%clk 0:02:22.6]} 15... Nb4
{[%clk 0:02:52.3]} 16. Bb1 {[%clk 0:02:20.5]} 16... bxa4 {[%clk 0:02:47.9]} 17.
Nxa4 {[%clk 0:02:18.1]} 17... Qa5 {[%clk 0:02:33.6]} 18. Nc5 {[%clk 0:02:10.1]}
18... Qb6 {[%clk 0:02:33.8]} 19. Rc3 {[%clk 0:02:01.5]} 19... Qb8 {[%clk
0:02:23.4]} 20. Qh4 {[%clk 0:01:59.4]} 20... h6 {[%clk 0:02:18]} 21. f4 {[%clk
0:01:56.8]} 21... Qd6 {[%clk 0:02:01.7]} 22. Rfc1 {[%clk 0:01:50.2]} 22... Rc6
{[%clk 0:01:53.1]} 23. g4 {[%clk 0:01:45.2]} 23... Nd7 {[%clk 0:01:52.9]} 24. g5
{[%clk 0:01:40]} 24... Nxc5 {[%clk 0:01:46.9]} 25. gxh6 {[%clk 0:01:32.6]} 25...
Qd8 {[%clk 0:00:58.1]} 26. Qxd8 {[%clk 0:01:20.4]} 26... Rxd8 {[%clk 0:00:57.9]}
27. hxg7 {[%clk 0:01:20.9]} 27... Kxg7 {[%clk 0:00:59.4]} 28. Rxc5 {[%clk
0:01:18.5]} 28... Rb6 {[%clk 0:00:46.7]} 29. f5 {[%clk 0:01:14.6]} 29... Rg8
{[%clk 0:00:39]} 30. Kf2 {[%clk 0:01:08.4]} 30... exf5 {[%clk 0:00:38.9]} 31.
Rg1+ {[%clk 0:01:04]} 31... Rg6 {[%clk 0:00:37]} 32. Bxf5 {[%clk 0:00:59]} 32...
Rxg1 {[%clk 0:00:29.1]} 33. Kxg1 {[%clk 0:01:00.9]} 33... Kf6+ {[%clk
0:00:28.2]} 34. Bg4 {[%clk 0:00:56.9]} 34... Re8 {[%clk 0:00:29.5]} 35. Rc3
{[%clk 0:00:53.3]} 35... Kg5 {[%clk 0:00:20.9]} 36. Kf2 {[%clk 0:00:50.5]} 36...
f5 {[%clk 0:00:21.4]} 37. Be2 {[%clk 0:00:47.2]} 37... f4 {[%clk 0:00:20.8]} 38.
h4+ {[%clk 0:00:40.5]} 38... Kf5 {[%clk 0:00:18.7]} 39. exf4 {[%clk 0:00:38.3]}
39... Kxf4 {[%clk 0:00:20.2]} 40. Rf3+ {[%clk 0:00:35.3]} 1-0

[Event "*** Qualifier 1: Titled Tuesday 3|2 Blitz"]
[Site "Chess.com"]
[Date "2017.04.04"]
[Round "8"]
[White "Zhani-Z"]
[Black "Rodalquilar"]
[Result "1-0"]
[WhiteElo "2405"]
[BlackElo "2545"]
[TimeControl "180+2"]
[EndTime "14:52:04 PDT"]
[Termination "Zhani-Z won by checkmate"]

1. e4 {[%clk 0:03:02]} 1... e5 {[%clk 0:03:00.4]} 2. Nf3 {[%clk 0:03:02.4]} 2...
Nc6 {[%clk 0:03:01.6]} 3. Bc4 {[%clk 0:03:03.9]} 3... Bc5 {[%clk 0:03:01.9]} 4.
c3 {[%clk 0:03:05]} 4... Nf6 {[%clk 0:03:01.7]} 5. d3 {[%clk 0:03:06.5]} 5... d6
{[%clk 0:03:01.6]} 6. O-O {[%clk 0:03:06.9]} 6... Bb6 {[%clk 0:03:02.7]} 7. a4
{[%clk 0:03:06.5]} 7... a5 {[%clk 0:02:53.5]} 8. h3 {[%clk 0:03:00.4]} 8... Ne7
{[%clk 0:02:54.3]} 9. Na3 {[%clk 0:02:54.9]} 9... Ng6 {[%clk 0:02:54.8]} 10. Nc2
{[%clk 0:02:55.6]} 10... c6 {[%clk 0:02:41.9]} 11. Be3 {[%clk 0:02:41.4]} 11...
Bc7 {[%clk 0:02:35.5]} 12. Ba2 {[%clk 0:02:20.5]} 12... O-O {[%clk 0:02:28.3]}
13. Re1 {[%clk 0:02:19]} 13... d5 {[%clk 0:02:13.8]} 14. Bg5 {[%clk 0:02:12.6]}
14... Be6 {[%clk 0:01:52.1]} 15. exd5 {[%clk 0:02:07.3]} 15... cxd5 {[%clk
0:01:47.9]} 16. Ne3 {[%clk 0:02:08]} 16... Qd6 {[%clk 0:01:25.2]} 17. Bxf6
{[%clk 0:01:43.5]} 17... gxf6 {[%clk 0:01:27.1]} 18. Ng4 {[%clk 0:01:41.8]}
18... Kg7 {[%clk 0:01:06.3]} 19. Qd2 {[%clk 0:01:42.2]} 19... Nf4 {[%clk
0:01:07.3]} 20. d4 {[%clk 0:01:31.4]} 20... e4 {[%clk 0:01:03.1]} 21. Nfe5
{[%clk 0:01:32.5]} 21... fxe5 {[%clk 0:00:54.8]} 22. dxe5 {[%clk 0:01:31.8]}
22... Nxh3+ {[%clk 0:00:45.2]} 23. gxh3 {[%clk 0:01:31.8]} 23... Qe7 {[%clk
0:00:40.2]} 24. Qh6+ {[%clk 0:00:57.2]} 24... Kh8 {[%clk 0:00:41.2]} 25. Nf6
{[%clk 0:00:57.9]} 25... Bf5 {[%clk 0:00:41.3]} 26. Nxd5 {[%clk 0:00:39.1]}
26... Rg8+ {[%clk 0:00:33.8]} 27. Kh1 {[%clk 0:00:37.4]} 27... e3 {[%clk
0:00:12]} 28. Rxe3 {[%clk 0:00:34.4]} 28... Qxe5 {[%clk 0:00:08.1]} 29. Rxe5
{[%clk 0:00:31.4]} 29... Bxe5 {[%clk 0:00:10]} 30. Re1 {[%clk 0:00:31.1]} 30...
Rg6 {[%clk 0:00:10.6]} 31. Qh5 {[%clk 0:00:24]} 31... Bc2 {[%clk 0:00:05.7]} 32.
Qxe5+ {[%clk 0:00:24.1]} 32... f6 {[%clk 0:00:06.7]} 33. Nxf6 {[%clk 0:00:22.3]}
33... h5 {[%clk 0:00:05.5]} 34. Nxh5+ {[%clk 0:00:19.8]} 34... Kh7 {[%clk
0:00:06.4]} 35. Nf4 {[%clk 0:00:19.7]} 35... Rg7 {[%clk 0:00:05.2]} 36. Qh5#
{[%clk 0:00:20.3]} 1-0

[Event "*** Qualifier 1: Titled Tuesday 3|2 Blitz"]
[Site "Chess.com"]
[Date "2017.04.04"]
[Round "8"]
[White "keisyzrk"]
[Black "Goala"]
[Result "0-1"]
[WhiteElo "2264"]
[BlackElo "2307"]
[TimeControl "180+2"]
[EndTime "14:52:06 PDT"]
[Termination "Goala won by resignation"]

1. d4 {[%clk 0:03:02]} 1... e6 {[%clk 0:03:01.2]} 2. c4 {[%clk 0:03:02.5]} 2...
Nf6 {[%clk 0:03:02.7]} 3. Nc3 {[%clk 0:03:03.6]} 3... c5 {[%clk 0:03:04.2]} 4.
d5 {[%clk 0:03:04.5]} 4... exd5 {[%clk 0:03:06.1]} 5. cxd5 {[%clk 0:03:06.4]}
5... d6 {[%clk 0:03:07.8]} 6. e4 {[%clk 0:03:07.8]} 6... g6 {[%clk 0:03:08.6]}
7. h3 {[%clk 0:03:09]} 7... Bg7 {[%clk 0:03:09.1]} 8. Nf3 {[%clk 0:03:10.6]}
8... Nh5 {[%clk 0:03:07.5]} 9. Bd3 {[%clk 0:03:09.6]} 9... O-O {[%clk
0:03:08.5]} 10. O-O {[%clk 0:03:08.5]} 10... Nd7 {[%clk 0:03:09.7]} 11. Bg5
{[%clk 0:02:58.9]} 11... Bf6 {[%clk 0:03:10.3]} 12. Be3 {[%clk 0:02:58.5]} 12...
Re8 {[%clk 0:03:08.5]} 13. Nd2 {[%clk 0:02:54.5]} 13... a6 {[%clk 0:03:06]} 14.
a4 {[%clk 0:02:53.1]} 14... Bg7 {[%clk 0:02:43.5]} 15. f4 {[%clk 0:02:25]} 15...
Qc7 {[%clk 0:02:10.5]} 16. Nc4 {[%clk 0:02:09.9]} 16... Bxc3 {[%clk 0:01:56.1]}
17. bxc3 {[%clk 0:02:09.5]} 17... Ng3 {[%clk 0:01:57.7]} 18. Qf3 {[%clk
0:02:00.3]} 18... Nxf1 {[%clk 0:01:58.4]} 19. Rxf1 {[%clk 0:02:02.2]} 19... b5
{[%clk 0:01:54.2]} 20. axb5 {[%clk 0:01:54.5]} 20... axb5 {[%clk 0:01:56.1]} 21.
Nxd6 {[%clk 0:01:55.4]} 21... Qxd6 {[%clk 0:01:55]} 22. e5 {[%clk 0:01:56.9]}
22... Qf8 {[%clk 0:01:36.5]} 23. Bxb5 {[%clk 0:01:44.9]} 23... Rd8 {[%clk
0:00:58.9]} 24. e6 {[%clk 0:01:09.7]} 24... Nf6 {[%clk 0:00:50.8]} 25. d6 {[%clk
0:01:03.6]} 25... Bxe6 {[%clk 0:00:49]} 26. Bxc5 {[%clk 0:01:01.8]} 26... Ra2
{[%clk 0:00:32.7]} 27. Bb4 {[%clk 0:00:56.4]} 27... Bd5 {[%clk 0:00:33.5]} 28.
d7 {[%clk 0:00:53.9]} 28... Qg7 {[%clk 0:00:18]} 29. Qg3 {[%clk 0:00:31.1]}
29... Rxg2+ {[%clk 0:00:17.5]} 30. Qxg2 {[%clk 0:00:32.5]} 30... Bxg2 {[%clk
0:00:19.2]} 31. Kxg2 {[%clk 0:00:30.8]} 31... Nxd7 {[%clk 0:00:19.7]} 32. Rd1
{[%clk 0:00:31.8]} 32... f6 {[%clk 0:00:18.7]} 33. Ba5 {[%clk 0:00:30.4]} 33...
Qe7 {[%clk 0:00:16.6]} 34. Bxd8 {[%clk 0:00:28.2]} 34... Qxd8 {[%clk 0:00:18.5]}
35. Rxd7 {[%clk 0:00:27.8]} 35... Qb6 {[%clk 0:00:18.4]} 36. Bc4+ {[%clk
0:00:28]} 36... Kh8 {[%clk 0:00:17.6]} 37. Rd4 {[%clk 0:00:27.5]} 37... Qc6+
{[%clk 0:00:17.6]} 38. Kg3 {[%clk 0:00:25.2]} 38... Kg7 {[%clk 0:00:17.7]} 39.
h4 {[%clk 0:00:24.4]} 39... Kh6 {[%clk 0:00:17.8]} 40. Kh3 {[%clk 0:00:23.3]}
40... Qf3+ {[%clk 0:00:17.9]} 41. Kh2 {[%clk 0:00:24.3]} 41... Qxc3 {[%clk
0:00:18.6]} 42. Re4 {[%clk 0:00:25.6]} 42... Qc2+ {[%clk 0:00:19.2]} 0-1